fUST/lending_fUST_20240706
["ID","MTS","AMOUNT","RATE_DAILY","PERIOD"]
[331302232,1720203042403,-154.80649189,0.000392,10]
[331302233,1720203042413,-528.186965,0.00039394,2]
[331302234,1720203042423,-379.04509844,0.0003988,120]
[331302235,1720203042433,-3990.00210664,0.0003999,4]
[331302236,1720203042443,-151.0,0.0004,120]
[331302237,1720203042453,-151.0,0.0004,120]
[331302238,1720203042463,-156.26240969,0.00040262,30]
[331302239,1720203042472,-8823.13575589,0.00041,30]
[331302240,1720203042482,-321.979601,0.00041096,120]
[331302241,1720203042492,-151.0,0.00041425,120]
[331302242,1720203042502,-2270.30930316,0.00041678,2]
[331302243,1720203042516,-6083.8536,0.00042,60]
[331302244,1720203042527,-164.616605,0.00042009,2]
[331302245,1720203042537,-151.0,0.00042164,120]
[331302246,1720203042547,-264.79837646,0.000425,30]
[331302247,1720203042557,-169.4,0.00042649,31]
[331302248,1720203042566,-151.0,0.00042849,120]
[331302249,1720203042575,-169.4,0.00043182,31]
[331302250,1720203042587,-169.4,0.00043714,31]
[331302251,1720203042598,-151.57276841,0.00044065,30]
[331302252,1720203042609,-151.0,0.00044274,120]
[331302253,1720203042618,-158.66605196,0.00044289,30]
[331302254,1720203042628,-151.0,0.00044329,120]
[331302255,1720203042639,-169.4,0.0004478,31]
[331302256,1720203042650,-160.13983905,0.00044822,30]
[331302257,1720203042659,-158.66605196,0.0004511,30]
[331302259,1720203042669,-169.4,0.00045312,31]
[331302260,1720203042679,-528.186965,0.00045494,2]
[331302262,1720203042689,-151.0,0.00045699,120]
[331302265,1720203042700,-743.80437738,0.00046,2]
[331302267,1720203042710,-2000.0,0.00046375,120]
[331302268,1720203042720,-232.401,0.00046377,2]
[331302270,1720203042730,-165.722,0.00046377,2]
[331302272,1720203042740,-999.759,0.00046377,2]
[331302274,1720203042749,-2270.30930316,0.00046475,2]
[331302275,1720203042760,-88888.0,0.00046475,5]
[331302276,1720203042771,-151.0,0.00046493,120]
[331302277,1720203042781,-14641.49,0.000465,120]
[331302278,1720203042791,-4357.22695229,0.00046574,120]
[331302279,1720203042800,-96191.88383561,0.00046575,61]
[331302280,1720203042809,-1000.0,0.00046575,120]
[331302281,1720203042819,-7812.91,0.00046575,120]
[331302282,1720203042829,-7812.91,0.00046575,120]
[331302283,1720203042838,-7812.91,0.00046575,120]
[331302284,1720203042847,-7812.91,0.00046575,120]
[331302285,1720203042856,-2977.10204044,0.00046575,120]
[331302338,1720203046930,-154.80649189,0.00034999,4]
[331302339,1720203046940,-4835.80795956,0.00046575,120]
[331302340,1720203046950,-7812.91,0.00046575,120]
[331302341,1720203046960,-970.665793,0.00046575,120]
[331302344,1720203046972,-29.334207,0.00046575,120]
[331302345,1720203046982,-7812.91,0.00046575,120]
[331302346,1720203046991,-1000.0,0.00046575,120]
[331302347,1720203047001,-7812.91,0.00046575,120]
[331302348,1720203047010,-1000.0,0.00046575,120]
[331302349,1720203047019,-7812.91,0.00046575,120]
[331302350,1720203047033,-7812.91,0.00046575,120]
[331302352,1720203047042,-1000.0,0.00046575,120]
[331302353,1720203047051,-7812.91,0.00046575,120]
[331302354,1720203047061,-1000.0,0.00046575,120]
[331302355,1720203047071,-7812.91,0.00046575,120]
[331302356,1720203047080,-1000.0,0.00046575,120]
[331302357,1720203047090,-7812.91,0.00046575,120]
[331302358,1720203047102,-633.25139038,0.00046575,120]
[331302359,1720203047118,-7812.91,0.00046575,120]
[331302360,1720203047128,-7812.91,0.00046575,120]
[331302361,1720203047138,-7812.91,0.00046575,120]
[331302362,1720203047147,-7812.91,0.00046575,120]
[331302363,1720203047157,-7812.91,0.00046575,120]
[331302364,1720203047167,-7812.91,0.00046575,120]
[331302365,1720203047177,-7812.91,0.00046575,120]
[331302366,1720203047186,-7812.91,0.00046575,120]
[331302367,1720203047196,-7812.91,0.00046575,120]
[331302368,1720203047206,-7812.91,0.00046575,120]
[331302369,1720203047215,-7813.03236218,0.00046575,120]
[331302370,1720203047225,-400.0,0.00046575,60]
[331302371,1720203047234,-152.80906433,0.00046698,30]
[331302372,1720203047338,-84186.83573691,0.00046788,61]
[331302374,1720203047350,-126040.61968772,0.00046789,120]
[331302430,1720203486626,2987.92375371,0.00030689,30]
[331302437,1720204039120,-308.08654358,0.00020996,2]
[331302438,1720204039142,-475.368268,0.00021096,2]
[331302439,1720204039166,-250.0,0.00024273,2]
[331302440,1720204039186,-200.0,0.00024658,15]
[331302441,1720204039210,-300.0,0.00025499,2]
[331302442,1720204039232,-300.0,0.00025499,2]
[331302443,1720204039253,-529.2710925,0.000255,2]
[331302444,1720204039275,-500.0,0.000255,2]
[331302445,1720204039297,-500.0,0.000255,2]
[331302446,1720204039318,-500.0,0.000255,2]
[331302447,1720204039339,-500.0,0.000255,2]
[331302448,1720204039360,-223.1630789,0.000255,2]
[331302499,1720204238841,-160.13983905,0.00023168,2]
[331302501,1720204238854,-150.73437924,0.00023882,2]
[331302503,1720204238864,-166.666666,0.00024011,2]
[331302505,1720204238874,-166.666666,0.00024666,2]
[331302507,1720204238884,-166.666666,0.00025321,2]
[331302509,1720204238893,-1464.89089073,0.000255,2]
[331302511,1720204238902,-4172.94461587,0.000255,2]
[331302513,1720204238913,-225.53942994,0.000255,2]
[331302515,1720204238928,-189.04078712,0.000255,2]
[331302517,1720204238938,-276.8369211,0.000255,2]
[331302519,1720204238948,-500.0,0.000255,2]
[331302535,1720204239107,-440.83656593,0.000255,2]
[331302538,1720204239119,-21.20608909,0.000255,2]
[331302540,1720204239133,-478.79391091,0.000255,2]
[331302542,1720204239144,-500.0,0.000255,2]
[331302544,1720204239154,-500.0,0.000255,2]
[331302546,1720204239165,-500.0,0.000255,2]
[331302548,1720204239176,-500.0,0.000255,2]
[331302550,1720204239188,-500.0,0.000255,2]
[331302552,1720204239198,-346.33268621,0.000255,2]
[331302554,1720204239213,-500.0,0.000255,2]
[331302556,1720204239225,-500.0,0.000255,2]
[331302558,1720204239236,-500.0,0.000255,2]
[331302560,1720204239246,-200.76810705,0.000255,2]
[331302562,1720204239257,-188.97423412,0.000255,2]
[331302564,1720204239268,-30059.32259332,0.00025501,2]
[331302566,1720204239281,-22040.75105781,0.00025501,2]
[331302568,1720204239292,-160.01703918,0.00025875,2]
[331302570,1720204239303,-166.666666,0.00025975,2]
[331302572,1720204239314,-166.666666,0.0002663,2]
[331302574,1720204239324,-161.546614,0.00026905,2]
[331302576,1720204239335,-150.73437924,0.00026969,2]
[331302577,1720204239346,-475.368268,0.00027195,2]
[331302580,1720204239359,-166.666666,0.00027284,2]
[331302582,1720204239369,-500.0,0.00027397,2]
[331302583,1720204239380,-500.0,0.00027397,2]
[331302585,1720204239391,-500.0,0.00027397,2]
[331302587,1720204239402,-500.0,0.00027397,2]
[331302590,1720204239413,-500.0,0.00027397,2]
[331302592,1720204239424,-500.0,0.00027397,2]
[331302594,1720204239435,-645.63478101,0.00027397,2]
[331302596,1720204239446,-500.0,0.00027397,2]
[331302598,1720204239456,-500.0,0.00027397,2]
[331302600,1720204239468,-500.0,0.00027397,2]
[331302602,1720204239479,-500.0,0.00027397,2]
[331302604,1720204239489,-500.0,0.00027397,2]
[331302605,1720204239500,-500.0,0.00027397,2]
[331302607,1720204239511,-500.0,0.00027397,2]
[331302610,1720204239522,-500.0,0.00027397,2]
[331302611,1720204239532,-500.0,0.00027397,2]
[331302613,1720204239543,-99.60930504,0.00027397,2]
[331302616,1720204239557,-400.39069496,0.00027397,2]
[331302618,1720204239567,-500.0,0.00027397,2]
[331302620,1720204239578,-314.5634781,0.00027397,2]
[331302622,1720204239588,-82.82345044,0.00027397,2]
[331302624,1720204239606,-417.17654956,0.00027397,2]
[331302626,1720204239616,-500.0,0.00027397,2]
[331302628,1720204239627,-500.0,0.00027397,2]
[331302630,1720204239639,-500.0,0.00027397,2]
[331302632,1720204239649,-500.0,0.00027397,2]
[331302634,1720204239659,-500.0,0.00027397,2]
[331302636,1720204239668,-500.0,0.00027397,2]
[331302638,1720204239679,-500.0,0.00027397,2]
[331302640,1720204239689,-250.0,0.00027397,2]
[331302642,1720204239699,-500.0,0.00027397,2]
[331302644,1720204239709,-500.0,0.00027397,2]
[331302645,1720204239719,-500.0,0.00027397,2]
[331302647,1720204239730,-500.0,0.00027397,2]
[331302650,1720204239741,-500.0,0.00027397,2]
[331302652,1720204239751,-500.0,0.00027397,2]
[331302653,1720204239762,-500.0,0.00027397,2]
[331302655,1720204239772,-500.0,0.00027397,2]
[331302656,1720204239783,-500.0,0.00027397,2]
[331302657,1720204239794,-500.0,0.00027397,2]
[331302658,1720204239805,-500.0,0.00027397,2]
[331302659,1720204239816,-500.0,0.00027397,2]
[331302660,1720204239826,-500.0,0.00027397,2]
[331302661,1720204239837,-500.0,0.00027397,2]
[331302662,1720204239849,-500.0,0.00027397,2]
[331302663,1720204239860,-500.0,0.00027397,2]
[331302664,1720204239870,-500.0,0.00027397,2]
[331302665,1720204239880,-500.0,0.00027397,2]
[331302667,1720204239891,-500.0,0.00027397,2]
[331302669,1720204239901,-500.0,0.00027397,2]
[331302671,1720204239912,-500.0,0.00027397,2]
[331302673,1720204239926,-500.0,0.00027397,2]
[331302674,1720204239936,-500.0,0.00027397,2]
[331302677,1720204239947,-500.0,0.00027397,2]
[331302678,1720204239956,-500.0,0.00027397,2]
[331302680,1720204239967,-500.0,0.00027397,2]
[331302682,1720204239977,-500.0,0.00027397,2]
[331302684,1720204239988,-500.0,0.00027397,2]
[331302687,1720204240003,-500.0,0.00027397,2]
[331302691,1720204240016,-500.0,0.00027397,2]
[331302692,1720204240027,-500.0,0.00027397,2]
[331302695,1720204240038,-500.0,0.00027397,2]
[331302696,1720204240048,-500.0,0.00027397,2]
[331302698,1720204240059,-500.0,0.00027397,2]
[331302700,1720204240069,-500.0,0.00027397,2]
[331302702,1720204240080,-500.0,0.00027397,2]
[331302704,1720204240090,-267.84332034,0.00027397,2]
[331302706,1720204240102,-500.0,0.00027397,2]
[331302708,1720204240112,-500.0,0.00027397,2]
[331302710,1720204240123,-321.979601,0.00027397,120]
[331302712,1720204240133,-250.0,0.00027663,2]
[331302714,1720204240143,-152.80906433,0.00027833,2]
[331302716,1720204240154,-59053.9953547,0.0002797,3]
[331302718,1720204240165,-30000.0,0.00027999,2]
[331302720,1720204240176,-12193.72029826,0.00028,30]
[331302722,1720204240186,-1816.24744256,0.0002821,2]
[331302724,1720204240196,-159.2983416,0.00029251,2]
[331302726,1720204240206,-207.09828204,0.00029792,2]
[331302728,1720204240217,-215.25275257,0.00029792,2]
[331302729,1720204240228,-165.45595187,0.00029792,2]
[331302730,1720204240238,-370.54513847,0.00029792,2]
[331302731,1720204240248,-500.0,0.00029792,2]
[331302732,1720204240259,-500.0,0.00029792,2]
[331302733,1720204240269,-500.0,0.00029792,2]
[331302734,1720204240279,-500.0,0.00029792,2]
[331302735,1720204240289,-500.0,0.00029792,2]
[331302736,1720204240299,-500.0,0.00029792,2]
[331302737,1720204240309,-500.0,0.00029792,2]
[331302738,1720204240319,-500.0,0.00029792,2]
[331302739,1720204240330,-500.0,0.00029792,2]
[331302740,1720204240340,-500.0,0.00029792,2]
[331302741,1720204240352,-500.0,0.00029792,2]
[331302742,1720204240362,-500.0,0.00029792,2]
[331302743,1720204240372,-500.0,0.00029792,2]
[331302744,1720204240382,-59053.9953547,0.00029793,3]
[331302745,1720204240396,-150.29383564,0.00029822,2]
[331302746,1720204240406,-1131.41936783,0.00029999,2]
[331302747,1720204240416,-4090.31021711,0.0003,5]
[331302748,1720204240426,-435.0,0.0003,2]
[331302749,1720204240437,-59053.9953547,0.00030371,4]
[331302750,1720204240450,-151.57276841,0.00030381,7]
[331302751,1720204240460,-1002.845982,0.000305,3]
[331302752,1720204240471,-1815.82125056,0.00030518,22]
[331302753,1720204240481,-1815.82125056,0.00030518,22]
[331302754,1720204240491,-504.49555993,0.00030579,2]
[331302755,1720204240501,-29994.11404709,0.00030689,10]
[331302756,1720204240511,-284.22582068,0.00030689,3]
[331302757,1720204240520,-150.0,0.00030734,7]
[331302758,1720204240530,-160.42,0.00030734,7]
[331302759,1720204240540,-1815.82125056,0.00030823,22]
[331302760,1720204240551,-1019.34294242,0.00030823,22]
[331302761,1720204240560,-152.80906433,0.0003094,7]
[331302762,1720204240570,-499.9,0.00031,30]
[331302763,1720204240580,-1967.1396881,0.00031128,24]
[331302764,1720204240589,-1967.13968811,0.00031434,24]
[331302765,1720204240600,-160.01703915,0.00031865,2]
[331302766,1720204240609,-321.979601,0.00031963,120]
[331302767,1720204240619,-1816.24744252,0.0003283,2]
[331302768,1720204240628,-59053.9953547,0.0003299,4]
[331302769,1720204240639,-5013.0,0.00033,4]
[331302770,1720204240649,-475.368268,0.00033295,2]
[331302771,1720204240659,-151.57276841,0.00033539,7]
[331302772,1720204240669,-26009.79821968,0.00033842,60]
[331302773,1720204240679,-1061.23104722,0.00034418,4]
[331302774,1720204240689,-1061.23104722,0.00034418,4]
[331302775,1720204240698,-8550.96884589,0.00034458,5]
[331302776,1720204240708,-150.30016482,0.00034503,7]
[331302777,1720204240718,-5331.37523403,0.00034573,7]
[331302778,1720204240728,-2865.4309312,0.0003467,4]
[331302779,1720204240738,-1000.0,0.000348,3]
[331302780,1720204240748,-1500.0,0.00034899,4]
[331302781,1720204240758,-642.76758109,0.00034899,4]
[331302782,1720204240767,-59053.9953547,0.00035249,4]
[331302783,1720204240778,-1500.68966724,0.00035292,2]
[331302784,1720204240788,-154.85288975,0.00035581,4]
[331302785,1720204240798,-231.37431573,0.00035581,4]
[331302786,1720204240808,-2000.89973827,0.00035615,4]
[331302787,1720204240821,-2126.43441341,0.00035615,4]
[331302788,1720204240831,-321.979601,0.0003653,120]
[331302789,1720204240842,-1429.44325412,0.00036732,2]
[331302790,1720204240859,-154.86392428,0.00037,4]
[331302791,1720204240869,-1091.40807892,0.00037259,21]
[331302792,1720204240880,-1816.24744252,0.0003745,2]
[331302793,1720204240891,-1392.46209166,0.00037523,4]
[331302794,1720204240901,-1029.08397233,0.00037807,4]
[331302795,1720204240912,-160.01703915,0.00037856,2]
[331302796,1720204240928,-150.80395486,0.00037894,2]
[331302797,1720204240938,-793.78228741,0.00037899,4]
[331302798,1720204240968,-948.9256647,0.00037999,4]
[331302799,1720204240979,-978.04,0.00038356,30]
[331302800,1720204240989,-264.86125261,0.00038499,2]
[331302801,1720204241001,-301.60790972,0.00038531,4]
[331302802,1720204241014,-150.0,0.00039017,4]
[331302803,1720204241025,-152.80906433,0.00039152,7]
[331302804,1720204241036,-435.0,0.00039167,2]
[331302805,1720204241046,-360.48479037,0.00039167,4]
[331302806,1720204241056,-351.32038796,0.00039167,30]
[331302807,1720204241065,-155.04482031,0.00039177,4]
[331302808,1720204241076,-393.89323921,0.00039177,4]
[331302809,1720204241085,-155.04482031,0.00039177,4]
[331302810,1720204241095,-531.43672027,0.00039177,30]
[331302811,1720204241113,-235.33275104,0.00039177,4]
[331302812,1720204241123,-235.33275104,0.00039177,4]
[331302813,1720204241132,-659.63990418,0.00039177,2]
[331302814,1720204241143,-603.21581943,0.00039178,7]
[331302815,1720204241153,-2000.0,0.00039376,4]
[331302816,1720204241162,-2000.0,0.00039385,4]
[331302817,1720204241172,-154.79103211,0.00039393,10]
[331302818,1720204241182,-2000.0,0.00039394,4]
[331302819,1720204241191,-475.368268,0.00039394,2]
[331302820,1720204241201,-158.66605196,0.00039832,7]
[331302821,1720204241210,-379.04509844,0.0003988,120]
[331302822,1720204241219,-154.79103211,0.00039994,4]
[331302823,1720204241228,-3240.28886649,0.00039999,4]
[331302834,1720204241559,-1927.48066713,0.00035292,4]
[331302836,1720204241569,-749.71324015,0.00039999,4]
[331302838,1720204241578,-371.39375676,0.00039999,4]
[331302840,1720204241587,-256.53141225,0.00039999,2]
[331302842,1720204241596,-151.0,0.0004,120]
[331302844,1720204241607,-151.0,0.0004,120]
[331302846,1720204241617,-20.25065,0.0004,30]
[331302910,1720204245281,-406.47788377,0.00029792,2]
[331302911,1720204245290,-500.0,0.00029792,2]
[331302912,1720204245299,-500.0,0.00029792,2]
[331302913,1720204245308,-500.0,0.00029792,2]
[331302914,1720204245318,-289.56153709,0.00029792,2]
[331302915,1720204245327,-500.0,0.00029792,2]
[331302916,1720204245336,-500.0,0.00029792,2]
[331302917,1720204245346,-268.22226744,0.00029792,2]
[331302918,1720204245356,-500.0,0.00029792,2]
[331302919,1720204245365,-500.0,0.00029792,2]
[331302920,1720204245377,-500.0,0.00029792,2]
[331302921,1720204245394,-500.0,0.00029792,2]
[331302922,1720204245412,-500.0,0.00029792,2]
[331302923,1720204245422,-500.0,0.00029792,2]
[331302924,1720204245432,-500.0,0.00029792,2]
[331302925,1720204245441,-500.0,0.00029792,2]
[331302926,1720204245451,-500.0,0.00029792,2]
[331302927,1720204245459,-588.0,0.00029792,2]
[331302928,1720204245469,-500.0,0.00029792,2]
[331302929,1720204245480,-500.0,0.00029792,2]
[331302930,1720204245490,-8550.96884589,0.00034388,5]
[331302931,1720204245499,-155.04482031,0.00039167,4]
[331302932,1720204245508,-4980.29098775,0.0004,30]
[331302933,1720204245518,-151.57276841,0.00040099,30]
[331302934,1720204245527,-1206.43163887,0.0004017,30]
[331302935,1720204245536,-245.83084824,0.00040229,4]
[331302936,1720204245546,-3757.59840223,0.00040268,5]
[331302937,1720204245557,-42027.01219509,0.00040268,5]
[331302938,1720204245569,-475.2,0.00040268,5]
[331302939,1720204245581,-12794.18475738,0.00040268,5]
[331302940,1720204245590,-151.57276841,0.00040923,30]
[331302941,1720204245600,-321.979601,0.00041096,120]
[331302942,1720204245610,-151.0,0.00041507,120]
[331302943,1720204245620,-1816.24744252,0.00042069,2]
[331302944,1720204245630,-151.0,0.00042082,120]
[331302945,1720204245639,-88888.0,0.00042288,5]
[331302946,1720204245649,-169.4,0.00042628,31]
[331302947,1720204245658,-264.79837646,0.00042629,30]
[331302948,1720204245667,-151.0,0.00043014,120]
[331302949,1720204245676,-169.4,0.00043161,31]
[331302950,1720204245686,-169.4,0.00043695,31]
[331302951,1720204245695,-160.01703915,0.00043846,28]
[331302952,1720204245705,-10000.0,0.00044,34]
[331302953,1720204245714,-151.0,0.00044164,120]
[331302954,1720204245724,-152.80906433,0.00044197,30]
[331302955,1720204245733,-169.4,0.00044228,31]
[331302956,1720204245743,-151.0,0.00044521,120]
[331302957,1720204245752,-169.4,0.00044762,31]
[331302958,1720204245762,-133251.13876217,0.00044999,61]
[331302959,1720204245772,-5994.91508442,0.00045,35]
[331302966,1720204247535,-154.79103211,0.00039994,4]
[331302967,1720204247545,-3427.0464081,0.00045,35]
[331302968,1720204247557,-578.03850748,0.00045,35]
[331302969,1720204247567,-166.0,0.00045,90]
[331302970,1720204247577,-156.0,0.00045,90]
[331302971,1720204247586,-53.1971976,0.00045295,31]
[331302972,1720204416821,-404.063028,0.00021096,2]
[331302973,1720204417828,-5715.42747634,0.00028,30]
[331302978,1720204467723,-318.63407273,0.00028,30]
[331302979,1720204467826,-6159.65874919,0.00028,30]
[331302981,1720204521921,318.63407273,0.00028,30]
[331304907,1720205124132,200.0,0.00024862,15]
[331304910,1720205252795,-1116.9418809,0.00024481,2]
[331304911,1720205252821,-250.0,0.00024752,2]
[331304912,1720205252844,-225.53942994,0.00024862,2]
[331304913,1720205252867,-4172.94461587,0.00024862,2]
[331304914,1720205252890,-763.20815407,0.00024862,2]
[331304915,1720205252911,-225.53942994,0.00024862,2]
[331304916,1720205252932,-316.25918736,0.000255,2]
[331304917,1720205252952,-500.0,0.000255,2]
[331304918,1720205252972,-263.18498103,0.000255,2]
[331304919,1720205252993,-500.0,0.000255,2]
[331304920,1720205253014,-500.0,0.000255,2]
[331304921,1720205253035,-500.0,0.000255,2]
[331304922,1720205253055,-500.0,0.000255,2]
[331304923,1720205253076,-500.0,0.000255,2]
[331304924,1720205253095,-500.0,0.000255,2]
[331304925,1720205253116,-500.0,0.000255,2]
[331304926,1720205253136,-500.0,0.000255,2]
[331304927,1720205253157,-176.3184981,0.000255,2]
[331304928,1720205253177,-16218.34168666,0.00025501,2]
[331304953,1720205438348,-900.80826738,0.00022942,2]
[331304958,1720205438369,-230.61110045,0.00022942,2]
[331304960,1720205438383,-1489.24109091,0.00022942,2]
[331304963,1720205438397,-166.666666,0.00024241,2]
[331304965,1720205438411,-166.666666,0.00024902,2]
[331304968,1720205438425,-197.13244658,0.00025204,2]
[331304970,1720205438441,-189.04078712,0.00025501,2]
[331304972,1720205438455,-763.20815407,0.00025501,2]
[331304973,1720205438469,-1613.74021224,0.00025501,2]
[331304978,1720205440938,-730.27185591,0.00025501,2]
[331304980,1720205440950,-1828.93254772,0.00025501,2]
[331304981,1720205440959,-225.53942994,0.00025501,2]
[331304984,1720205440970,-35881.73196447,0.00025501,2]
[331304986,1720205440980,-276.42306753,0.00025501,2]
[331304989,1720205440989,-166.666666,0.00025563,2]
[331304991,1720205440998,-160.01703915,0.00025769,2]
[331304992,1720205441008,-276.42306753,0.00025869,2]
[331304993,1720205441017,-11242.88577873,0.00025869,2]
[331304994,1720205441208,-18757.11422127,0.00025869,2]
[331304995,1720205441217,-350.9948903,0.00025869,2]
[331304996,1720205441227,-160.09733992,0.00025869,2]
[331304997,1720205441236,-590.80081677,0.00025869,2]
[331304998,1720205441246,-247.26523235,0.00025902,2]
[331304999,1720205441255,-2849.4807302,0.00026,2]
[331305000,1720205441268,-1613.50034408,0.00026,2]
[331305001,1720205441277,-166.666666,0.00026223,2]
[331305002,1720205441287,-247.46843612,0.00026574,2]
[331305003,1720205441296,-293.1691109,0.00026848,2]
[331305004,1720205441306,-166.666666,0.00026884,2]
[331305005,1720205441315,-404.063028,0.00027195,2]
[331305006,1720205441325,-500.0,0.00027397,2]
[331305007,1720205441334,-383.24067985,0.00027397,2]
[331305008,1720205441345,-500.0,0.00027397,2]
[331305009,1720205441359,-153.69340887,0.00027397,2]
[331305010,1720205441368,-329.15510174,0.000274,2]
[331305011,1720205441379,-158.66605196,0.00027473,2]
[331305012,1720205441388,-166.666666,0.00027545,2]
[331305013,1720205441398,-13492.00405564,0.00028,10]
[331305018,1720205447284,-1531.98489727,0.00028,10]
[331305019,1720205447294,-1101.40384789,0.00028,30]
[331305022,1720205451101,-527.68033913,0.000255,2]
[331305023,1720205451111,-6150.54966087,0.00025869,2]
[331305026,1720205716987,1493.61,0.00026,19]
[331305027,1720205717012,522.54077751,0.00026,19]
[331305044,1720206452802,-30000.0,0.00016255,2]
[331305045,1720206453165,-363.656725,0.00021096,2]
[331305046,1720206453527,-1116.9418809,0.00021917,2]
[331305047,1720206453608,-166.666666,0.00022929,2]
[331305048,1720206453632,-164.616605,0.00023368,2]
[331305049,1720206453654,-166.666666,0.00023554,2]
[331305050,1720206453676,-166.666666,0.00024179,2]
[331305051,1720206453701,-166.666666,0.00024804,2]
[331305052,1720206453720,-156.26240969,0.00025265,2]
[331305053,1720206453741,-166.666666,0.00025429,2]
[331305054,1720206453761,-352.92427757,0.000255,2]
[331305055,1720206453788,-52100.07365113,0.00025501,2]
[331305056,1720206454312,-197.13244658,0.00025902,2]
[331305057,1720206454351,-763.20815407,0.00026,2]
[331305058,1720206454411,-189.04078712,0.00026,2]
[331305059,1720206454472,-4172.94461587,0.00026,2]
[331305060,1720206454710,-225.53942994,0.00026,2]
[331305061,1720206454738,-166.666666,0.00026055,2]
[331305062,1720206454784,-250.0,0.00026361,2]
[331305063,1720206455125,-161.546614,0.00026581,2]
[331305064,1720206455950,-590.80081677,0.00027184,2]
[331305065,1720206456158,-160.09733992,0.00027194,2]
[331305066,1720206456910,-363.656725,0.00027195,2]
[331305067,1720206457590,-1340.58416111,0.0002789,2]
[331305068,1720206458159,-10891.78,0.0002796,3]
[331305069,1720206458784,-36677.61377828,0.0002799,3]
[331305078,1720206605815,-158.66605196,0.00024738,2]
[331305080,1720206606974,-166.666666,0.00025784,2]
[331305081,1720206607016,-442.51196875,0.00025869,2]
[331305090,1720206637293,-590.80081677,0.00025501,2]
[331305091,1720206637303,-2151.14402817,0.00025869,2]
[331305094,1720206637316,-2448.78479675,0.00025869,2]
[331305096,1720206637327,-166.666666,0.00026487,2]
[331305098,1720206637346,-276.42306753,0.00027184,2]
[331305099,1720206637360,-293.1691109,0.00027184,2]
[331305101,1720206637380,-166.666666,0.0002719,2]
[331305102,1720206637418,-996.51047379,0.00027399,2]
[331305103,1720206637446,-250.0,0.00027493,2]
[331305104,1720206637458,-166.666666,0.00027893,2]
[331305105,1720206637468,-225.53942994,0.0002799,2]
[331305106,1720206637479,-189.04078712,0.0002799,2]
[331305107,1720206637496,-690.38440563,0.0002799,2]
[331305143,1720206643186,-3482.56021024,0.0002799,2]
[331305144,1720206643196,-763.20815407,0.0002799,2]
[331305145,1720206643205,-268.30367969,0.00028,2]
[331305146,1720206643215,-3558.61825005,0.00028,30]
[331305147,1720206643227,-2368.23788058,0.00028,30]
[331305149,1720206643506,-25.10658313,0.00028,30]
[331305159,1720206646246,-681.01915666,0.00028,30]
[331305183,1720206673046,-4032.83707931,0.00028,30]
[331305184,1720206673056,-166.666666,0.00028596,2]
[331305185,1720206673066,-1000.0,0.00029,29]
[331305186,1720206673076,-166.666666,0.00029299,2]
[331305187,1720206673086,-523.15509562,0.000298,120]
[331305188,1720206673097,-915.06377454,0.00029822,2]
[331305189,1720206673107,-500.0,0.00029878,2]
[331305190,1720206673117,-52100.07365113,0.00029879,2]
[331305191,1720206673128,-384.25271217,0.0003,10]
[331305192,1720206673138,-202.81587581,0.0003,30]
[331305193,1720206673147,-1000.010624,0.0003,7]
[331305194,1720206673157,-949.999999,0.0003,30]
[331305195,1720206673167,-289.0,0.0003,2]
[331305196,1720206673176,-1215.67662641,0.00030603,3]
[331305197,1720206673186,-184.799999,0.0003065,2]
[331305198,1720206673196,-5000.0,0.00030734,30]
[331305199,1720206673206,-150.0,0.00030756,7]
[331305200,1720206673215,-160.42,0.00030756,7]
[331305201,1720206673225,-300.0,0.00030756,2]